[Event "Live Chess"]
[Site "Chess.com"]
[Date "2023.05.21"]
[Round "-"]
[White "Long1968"]
[Black "LiamBellwood"]
[Result "0-1"]
[WhiteElo "1051"]
[BlackElo "2009"]
[TimeControl "300"]
[EndTime "20:14:46 PDT"]
[Termination "LiamBellwood won by resignation"]

1. e4 {[%clk 0:04:57]} 1... e6 {[%clk 0:04:59.9]} 2. d4 {[%clk 0:04:54.8]} 2...
d5 {[%clk 0:04:59.5]} 3. Nc3 {[%clk 0:04:52.5]} 3... Nf6 {[%clk 0:04:57.3]} 4.
exd5 {[%clk 0:04:48.1]} 4... exd5 {[%clk 0:04:56.4]} 5. Nge2 {[%clk 0:04:44.1]}
5... Bd6 {[%clk 0:04:54.2]} 6. Bf4 {[%clk 0:04:39]} 6... O-O {[%clk 0:04:51.8]}
7. Qd2 {[%clk 0:04:36.3]} 7... c6 {[%clk 0:04:47.8]} 8. Bxd6 {[%clk 0:04:32.5]}
8... Qxd6 {[%clk 0:04:47.7]} 9. Qf4 {[%clk 0:04:30.1]} 9... Qxf4 {[%clk
0:04:44.9]} 10. Nxf4 {[%clk 0:04:27.6]} 10... Re8+ {[%clk 0:04:44.8]} 11. Be2
{[%clk 0:04:22.5]} 11... Bf5 {[%clk 0:04:37]} 12. Kd2 {[%clk 0:04:11.2]} 12...
Na6 {[%clk 0:04:22.6]} 13. a3 {[%clk 0:04:02.7]} 13... Nc7 {[%clk 0:04:21.5]}
14. Rhe1 {[%clk 0:03:52.5]} 14... Ne6 {[%clk 0:04:19.5]} 15. Nxe6 {[%clk
0:03:45.2]} 15... Rxe6 {[%clk 0:04:19.4]} 16. Bd3 {[%clk 0:03:37.4]} 16... Bxd3
{[%clk 0:04:11.1]} 17. Rxe6 {[%clk 0:03:24]} 17... fxe6 {[%clk 0:04:11]} 18.
Kxd3 {[%clk 0:03:21.7]} 18... Re8 {[%clk 0:04:10.1]} 19. f3 {[%clk 0:03:14.7]}
19... e5 {[%clk 0:04:08.3]} 20. Re1 {[%clk 0:03:04.7]} 20... Nd7 {[%clk
0:03:55.3]} 21. dxe5 {[%clk 0:02:52.4]} 21... Nxe5+ {[%clk 0:03:55.2]} 22. Ke3
{[%clk 0:01:19.3]} 22... Nxf3+ {[%clk 0:03:54.5]} 23. Kxf3 {[%clk 0:01:01.1]}
23... Rxe1 {[%clk 0:03:54.4]} 24. h3 {[%clk 0:00:41.1]} 24... Rc1 {[%clk
0:03:53.6]} 25. Nd1 {[%clk 0:00:20.4]} 25... Rxd1 {[%clk 0:03:52.4]} 0-1

[Event "Live Chess"]
[Site "Chess.com"]
[Date "2023.05.21"]
[Round "-"]
[White "Pablo_dmp"]
[Black "manthanit"]
[Result "1-0"]
[WhiteElo "1861"]
[BlackElo "1067"]
[TimeControl "300"]
[EndTime "20:15:21 PDT"]
[Termination "Pablo_dmp won by resignation"]

1. e4 {[%clk 0:04:57.1]} 1... e6 {[%clk 0:04:59.3]} 2. Nf3 {[%clk 0:04:54.3]}
2... d5 {[%clk 0:04:58.8]} 3. Nc3 {[%clk 0:04:53.3]} 3... dxe4 {[%clk
0:04:57.7]} 4. Nxe4 {[%clk 0:04:50.9]} 4... Nf6 {[%clk 0:04:56.7]} 5. Bd3 {[%clk
0:04:47.3]} 5... Nxe4 {[%clk 0:04:55.6]} 6. Bxe4 {[%clk 0:04:45.7]} 6... c6
{[%clk 0:04:55]} 7. d4 {[%clk 0:04:42.8]} 7... Na6 {[%clk 0:04:54.1]} 8. Bf4
{[%clk 0:04:39.2]} 8... Bd6 {[%clk 0:04:52.1]} 9. Qd2 {[%clk 0:04:29.9]} 9...
Bxf4 {[%clk 0:04:50.3]} 10. Qxf4 {[%clk 0:04:29.8]} 10... Qf6 {[%clk 0:04:48.9]}
11. Qe3 {[%clk 0:04:15.3]} 11... O-O {[%clk 0:04:42.9]} 12. O-O {[%clk
0:04:11.1]} 12... Nc7 {[%clk 0:04:41.8]} 13. c3 {[%clk 0:04:09.3]} 13... Nd5
{[%clk 0:04:39.8]} 14. Qd2 {[%clk 0:04:00.9]} 14... Bd7 {[%clk 0:04:38.3]} 15.
Bc2 {[%clk 0:03:58.7]} 15... Rae8 {[%clk 0:04:36.1]} 16. Ne5 {[%clk 0:03:57.1]}
16... Re7 {[%clk 0:04:33.4]} 17. Qd3 {[%clk 0:03:55.5]} 17... Qh6 {[%clk
0:04:30.2]} 18. Ng4 {[%clk 0:03:52]} 18... Qg6 {[%clk 0:04:29.1]} 19. Qe2 {[%clk
0:03:48.8]} 19... Qg5 {[%clk 0:04:23.7]} 20. Qe4 {[%clk 0:03:38]} 20... f5
{[%clk 0:04:05.9]} 21. f4 {[%clk 0:03:12.9]} 21... Qh4 {[%clk 0:03:06.5]} 22. g3
{[%clk 0:02:57.8]} 22... Qxg4 {[%clk 0:03:04.8]} 23. Qd3 {[%clk 0:02:48.7]}
23... g5 {[%clk 0:02:52.3]} 24. Bd1 {[%clk 0:02:46.4]} 24... Qh3 {[%clk
0:02:48.2]} 25. c4 {[%clk 0:02:39.2]} 25... Nc7 {[%clk 0:02:35.1]} 26. fxg5
{[%clk 0:02:35.2]} 26... Rg7 {[%clk 0:02:32.6]} 27. Qe3 {[%clk 0:02:30.5]} 27...
c5 {[%clk 0:02:02.1]} 28. dxc5 {[%clk 0:02:23.2]} 28... Bc6 {[%clk 0:02:01]} 29.
Bf3 {[%clk 0:02:20.3]} 29... Bxf3 {[%clk 0:01:59.5]} 30. Rxf3 {[%clk 0:02:20.2]}
30... Rxg5 {[%clk 0:01:55.3]} 31. Qxg5+ {[%clk 0:02:18.3]} 31... Kh8 {[%clk
0:01:53.3]} 32. Qe7 {[%clk 0:02:12.8]} 32... Rg8 {[%clk 0:00:42.4]} 33. Qxc7
{[%clk 0:02:08.6]} 33... Qg4 {[%clk 0:00:39.7]} 34. Raf1 {[%clk 0:02:05.7]}
34... h5 {[%clk 0:00:31.8]} 35. Qe5+ {[%clk 0:02:02.2]} 35... Rg7 {[%clk
0:00:28.7]} 36. Qxe6 {[%clk 0:01:59.2]} 36... h4 {[%clk 0:00:25.6]} 37. Qxf5
{[%clk 0:01:55.5]} 37... hxg3 {[%clk 0:00:20.8]} 38. Qxg4 {[%clk 0:01:52.8]}
38... Rxg4 {[%clk 0:00:19.8]} 39. h3 {[%clk 0:01:52.7]} 39... Rg6 {[%clk
0:00:17.6]} 40. Kg2 {[%clk 0:01:52.6]} 40... Kh7 {[%clk 0:00:15.3]} 41. Rxg3
{[%clk 0:01:52.5]} 41... Kh6 {[%clk 0:00:13.8]} 42. Rxg6+ {[%clk 0:01:50.1]} 1-0

[Event "Live Chess"]
[Site "Chess.com"]
[Date "2023.05.21"]
[Round "-"]
[White "Tushinskiy"]
[Black "KeithArkell"]
[Result "1-0"]
[WhiteElo "2208"]
[BlackElo "2570"]
[TimeControl "300"]
[EndTime "20:15:35 PDT"]
[Termination "Tushinskiy won by resignation"]

1. d4 {[%clk 0:04:57.1]} 1... e6 {[%clk 0:04:58.8]} 2. c3 {[%clk 0:04:57]} 2...
c5 {[%clk 0:04:56.9]} 3. Nf3 {[%clk 0:04:56.9]} 3... Nf6 {[%clk 0:04:56.2]} 4.
Bf4 {[%clk 0:04:55.7]} 4... b6 {[%clk 0:04:55]} 5. e3 {[%clk 0:04:54.9]} 5...
Be7 {[%clk 0:04:53.9]} 6. Nbd2 {[%clk 0:04:54.3]} 6... O-O {[%clk 0:04:52.2]} 7.
Bd3 {[%clk 0:04:53.7]} 7... Ba6 {[%clk 0:04:50.8]} 8. Bxa6 {[%clk 0:04:52.3]}
8... Nxa6 {[%clk 0:04:50]} 9. Qe2 {[%clk 0:04:52.2]} 9... Nc7 {[%clk 0:04:48.8]}
10. O-O {[%clk 0:04:51.5]} 10... d5 {[%clk 0:04:47.7]} 11. Rad1 {[%clk
0:04:50.1]} 11... Qd7 {[%clk 0:04:45.2]} 12. Ne5 {[%clk 0:04:48.9]} 12... Qe8
{[%clk 0:04:43.1]} 13. Nxf7 {[%clk 0:04:43.9]} 13... Qxf7 {[%clk 0:04:41.8]} 14.
Bxc7 {[%clk 0:04:42.7]} 14... Ne4 {[%clk 0:04:36.8]} 15. Nxe4 {[%clk 0:04:40.7]}
15... dxe4 {[%clk 0:04:36]} 16. dxc5 {[%clk 0:04:38.7]} 16... Bxc5 {[%clk
0:04:34.8]} 17. Bg3 {[%clk 0:04:37.7]} 17... Rad8 {[%clk 0:04:06.9]} 18. Qc4
{[%clk 0:04:32.4]} 18... Qf5 {[%clk 0:03:55.5]} 19. b4 {[%clk 0:04:21.7]} 19...
Be7 {[%clk 0:03:50]} 20. Qc7 {[%clk 0:04:19.6]} 20... Bf6 {[%clk 0:03:43.1]} 21.
Rxd8 {[%clk 0:04:17.7]} 21... Rxd8 {[%clk 0:03:40.7]} 22. Qxa7 {[%clk
0:04:16.3]} 22... b5 {[%clk 0:03:36.8]} 23. Qc7 {[%clk 0:04:06.1]} 23... Qd5
{[%clk 0:03:31.8]} 24. h3 {[%clk 0:03:55.6]} 24... Qxa2 {[%clk 0:03:24.6]} 25.
Be5 {[%clk 0:03:51.3]} 25... Qd5 {[%clk 0:03:20.8]} 26. Bxf6 {[%clk 0:03:49.5]}
26... gxf6 {[%clk 0:03:20]} 27. Ra1 {[%clk 0:03:46.1]} 27... Qd7 {[%clk
0:03:13.9]} 28. Qg3+ {[%clk 0:03:44.3]} 28... Kf7 {[%clk 0:03:08.5]} 29. Qh4
{[%clk 0:03:42.4]} 29... Kg6 {[%clk 0:02:35.3]} 30. Qg4+ {[%clk 0:03:37.4]}
30... Kf7 {[%clk 0:02:34.1]} 31. Qxe4 {[%clk 0:03:36.5]} 31... f5 {[%clk
0:02:29.1]} 32. Qh4 {[%clk 0:03:34.7]} 32... Kg6 {[%clk 0:02:25.3]} 33. Qg3+
{[%clk 0:03:32.8]} 33... Kf6 {[%clk 0:02:24.2]} 34. Qh4+ {[%clk 0:03:29.7]}
34... Kg6 {[%clk 0:02:22.9]} 35. e4 {[%clk 0:03:21.9]} 35... Rc8 {[%clk
0:02:00.1]} 36. exf5+ {[%clk 0:03:20.1]} 36... exf5 {[%clk 0:01:59.4]} 37. Qg3+
{[%clk 0:03:15.6]} 37... Kf6 {[%clk 0:01:58.5]} 38. Qe3 {[%clk 0:03:14.3]} 38...
Qc6 {[%clk 0:01:43.3]} 39. Qh6+ {[%clk 0:03:09.1]} 39... Ke5 {[%clk 0:01:41.7]}
40. Re1+ {[%clk 0:02:48.2]} 40... Kd5 {[%clk 0:01:40.3]} 41. Qxh7 {[%clk
0:02:45.4]} 41... Kc4 {[%clk 0:01:13.5]} 42. Qxf5 {[%clk 0:02:29.7]} 42... Rd8
{[%clk 0:00:59.2]} 43. Qf7+ {[%clk 0:01:40.7]} 43... Qd5 {[%clk 0:00:52.6]} 44.
Qf4+ {[%clk 0:01:32.7]} 44... Kb3 {[%clk 0:00:51]} 45. Rb1+ {[%clk 0:01:30.8]}
45... Kc2 {[%clk 0:00:48.3]} 46. Qc1+ {[%clk 0:01:26.8]} 46... Kd3 {[%clk
0:00:47.4]} 47. Qf1+ {[%clk 0:01:25]} 47... Kxc3 {[%clk 0:00:42.5]} 48. Qc1+
{[%clk 0:01:21.1]} 48... Kd3 {[%clk 0:00:41.7]} 49. Qe3+ {[%clk 0:01:18.5]}
49... Kc2 {[%clk 0:00:35.5]} 50. Rc1+ {[%clk 0:01:17]} 1-0

[Event "Live Chess"]
[Site "Chess.com"]
[Date "2023.05.21"]
[Round "-"]
[White "Biranidun"]
[Black "chessfiction"]
[Result "1-0"]
[WhiteElo "2515"]
[BlackElo "2341"]
[TimeControl "300"]
[EndTime "20:16:17 PDT"]
[Termination "Biranidun won by resignation"]

1. e4 {[%clk 0:04:59.2]} 1... d6 {[%clk 0:04:58.7]} 2. d4 {[%clk 0:04:57.1]}
2... Nf6 {[%clk 0:04:58.6]} 3. Nc3 {[%clk 0:04:56.4]} 3... c6 {[%clk 0:04:58.5]}
4. f4 {[%clk 0:04:55.7]} 4... Qa5 {[%clk 0:04:57.8]} 5. Bd3 {[%clk 0:04:55.3]}
5... e5 {[%clk 0:04:56.7]} 6. Nf3 {[%clk 0:04:54.7]} 6... Bg4 {[%clk 0:04:55.8]}
7. Be3 {[%clk 0:04:54.3]} 7... Nbd7 {[%clk 0:04:54]} 8. O-O {[%clk 0:04:53.5]}
8... Be7 {[%clk 0:04:52.7]} 9. h3 {[%clk 0:04:52.8]} 9... Bh5 {[%clk 0:04:50.8]}
10. g4 {[%clk 0:04:50.8]} 10... exf4 {[%clk 0:04:49.8]} 11. Bxf4 {[%clk
0:04:48.7]} 11... Bg6 {[%clk 0:04:49.2]} 12. Kg2 {[%clk 0:04:20.3]} 12... O-O
{[%clk 0:04:45.4]} 13. Qe1 {[%clk 0:04:14.5]} 13... Rfe8 {[%clk 0:04:43.8]} 14.
Qg3 {[%clk 0:04:13.5]} 14... Nf8 {[%clk 0:04:38.5]} 15. Rae1 {[%clk 0:04:06.6]}
15... Rad8 {[%clk 0:04:32.7]} 16. h4 {[%clk 0:04:04.8]} 16... h5 {[%clk
0:04:29.8]} 17. g5 {[%clk 0:04:03.7]} 17... Ng4 {[%clk 0:04:28.9]} 18. a3 {[%clk
0:03:56.5]} 18... Ne6 {[%clk 0:04:25.8]} 19. Bd2 {[%clk 0:03:55]} 19... Qb6
{[%clk 0:04:05.2]} 20. Ne2 {[%clk 0:03:44.7]} 20... Qxb2 {[%clk 0:04:03.3]} 21.
Rb1 {[%clk 0:03:43.6]} 21... Qxa3 {[%clk 0:03:58]} 22. Rxb7 {[%clk 0:03:42.7]}
22... d5 {[%clk 0:03:52.4]} 23. Rb3 {[%clk 0:03:31.2]} 23... Qxb3 {[%clk
0:03:46.8]} 24. cxb3 {[%clk 0:03:29.9]} 24... dxe4 {[%clk 0:03:45.9]} 25. Bc4
{[%clk 0:03:26]} 25... exf3+ {[%clk 0:03:41.4]} 26. Qxf3 {[%clk 0:03:25.9]}
26... Bxg5 {[%clk 0:02:56.3]} 27. hxg5 {[%clk 0:03:14.7]} 27... Nxg5 {[%clk
0:02:53.1]} 28. Bxg5 {[%clk 0:03:12.3]} 28... Be4 {[%clk 0:02:52.3]} 29. Bxf7+
{[%clk 0:03:10]} 29... Kh8 {[%clk 0:02:51.7]} 30. Bxd8 {[%clk 0:02:37.6]} 30...
Bxf3+ {[%clk 0:02:24.5]} 31. Rxf3 {[%clk 0:02:36.6]} 31... Rxe2+ {[%clk
0:02:10.7]} 32. Kg3 {[%clk 0:02:35.6]} 32... Ne3 {[%clk 0:01:38.8]} 33. Bxh5
{[%clk 0:02:29.9]} 33... Rg2+ {[%clk 0:01:35.7]} 34. Kh3 {[%clk 0:02:29.2]}
34... Re2 {[%clk 0:01:30.7]} 35. Rf8+ {[%clk 0:02:27.3]} 35... Kh7 {[%clk
0:01:29.1]} 36. Bxe2 {[%clk 0:02:27.2]} 1-0

[Event "Live Chess"]
[Site "Chess.com"]
[Date "2023.05.21"]
[Round "-"]
[White "LutherSullivan"]
[Black "tpm07"]
[Result "1-0"]
[WhiteElo "2201"]
[BlackElo "1949"]
[TimeControl "300"]
[EndTime "20:16:40 PDT"]
[Termination "LutherSullivan won by resignation"]

1. d4 {[%clk 0:04:58.4]} 1... Nf6 {[%clk 0:04:57.4]} 2. Nf3 {[%clk 0:04:57.9]}
2... d5 {[%clk 0:04:54]} 3. c4 {[%clk 0:04:56.1]} 3... e6 {[%clk 0:04:52.5]} 4.
Nc3 {[%clk 0:04:52.1]} 4... Bb4 {[%clk 0:04:50.2]} 5. cxd5 {[%clk 0:04:50.3]}
5... exd5 {[%clk 0:04:46.9]} 6. Bg5 {[%clk 0:04:49.4]} 6... h6 {[%clk
0:04:43.2]} 7. Bxf6 {[%clk 0:04:47.2]} 7... Qxf6 {[%clk 0:04:40.9]} 8. e3 {[%clk
0:04:46.4]} 8... O-O {[%clk 0:04:23.8]} 9. Be2 {[%clk 0:04:44.9]} 9... c6 {[%clk
0:04:21.2]} 10. O-O {[%clk 0:04:43.8]} 10... Nd7 {[%clk 0:04:08.7]} 11. Rc1
{[%clk 0:04:36.8]} 11... Re8 {[%clk 0:04:05.8]} 12. a3 {[%clk 0:04:33.8]} 12...
Bd6 {[%clk 0:04:03.4]} 13. b4 {[%clk 0:04:26]} 13... b5 {[%clk 0:03:51.4]} 14.
a4 {[%clk 0:04:12.3]} 14... Bxb4 {[%clk 0:03:42.3]} 15. axb5 {[%clk 0:04:10]}
15... Bxc3 {[%clk 0:03:41.3]} 16. Rxc3 {[%clk 0:04:09.2]} 16... cxb5 {[%clk
0:03:40.5]} 17. Bxb5 {[%clk 0:04:08.5]} 17... Re6 {[%clk 0:03:32.3]} 18. Rxc8+
{[%clk 0:03:57.2]} 18... Rxc8 {[%clk 0:03:30.8]} 19. Bxd7 {[%clk 0:03:55.4]}
19... Rec6 {[%clk 0:03:23.7]} 20. Bxc8 {[%clk 0:03:52.1]} 1-0

[Event "Live Chess"]
[Site "Chess.com"]
[Date "2023.05.21"]
[Round "-"]
[White "Olisingapore"]
[Black "BostonStrangler"]
[Result "0-1"]
[WhiteElo "1770"]
[BlackElo "2058"]
[TimeControl "300"]
[EndTime "20:18:18 PDT"]
[Termination "BostonStrangler won by checkmate"]

1. d4 {[%clk 0:04:57.9]} 1... Nf6 {[%clk 0:04:58.5]} 2. c4 {[%clk 0:04:56.1]}
2... c5 {[%clk 0:04:57.4]} 3. d5 {[%clk 0:04:54.3]} 3... b5 {[%clk 0:04:57]} 4.
cxb5 {[%clk 0:04:53.2]} 4... a6 {[%clk 0:04:56.5]} 5. bxa6 {[%clk 0:04:52.8]}
5... Bxa6 {[%clk 0:04:55.8]} 6. Nc3 {[%clk 0:04:49.4]} 6... d6 {[%clk
0:04:55.2]} 7. g3 {[%clk 0:04:47.8]} 7... g6 {[%clk 0:04:53.6]} 8. Bg2 {[%clk
0:04:47.4]} 8... Bg7 {[%clk 0:04:52]} 9. Nf3 {[%clk 0:04:46.9]} 9... Nbd7 {[%clk
0:04:50.5]} 10. O-O {[%clk 0:04:46.4]} 10... Nb6 {[%clk 0:04:49.7]} 11. b3
{[%clk 0:04:39.6]} 11... Bc8 {[%clk 0:04:47.9]} 12. Bb2 {[%clk 0:04:37]} 12...
O-O {[%clk 0:04:33.9]} 13. Re1 {[%clk 0:04:36.3]} 13... Nfxd5 {[%clk 0:04:18]}
14. Nxd5 {[%clk 0:04:32]} 14... Bxb2 {[%clk 0:04:16.8]} 15. Nxb6 {[%clk
0:04:28.1]} 15... Qxb6 {[%clk 0:04:12]} 16. Rb1 {[%clk 0:04:25.3]} 16... Bg7
{[%clk 0:04:00.4]} 17. a4 {[%clk 0:04:10.3]} 17... Bf5 {[%clk 0:03:50.1]} 18. e4
{[%clk 0:04:04.2]} 18... Bc8 {[%clk 0:03:33.2]} 19. Qd5 {[%clk 0:03:50.1]} 19...
Bb7 {[%clk 0:03:30.2]} 20. Qd3 {[%clk 0:03:44.2]} 20... Ba6 {[%clk 0:03:27.3]}
21. Qd2 {[%clk 0:03:38.6]} 21... Rab8 {[%clk 0:03:21]} 22. Qc2 {[%clk 0:03:36]}
22... Qa5 {[%clk 0:03:07.1]} 23. Nd2 {[%clk 0:03:30.6]} 23... Qc3 {[%clk
0:02:59.4]} 24. Rbc1 {[%clk 0:03:03.7]} 24... Qxc2 {[%clk 0:02:54.2]} 25. Rxc2
{[%clk 0:03:01.3]} 25... Bd3 {[%clk 0:02:53.7]} 26. Ra2 {[%clk 0:02:54.6]} 26...
Bd4 {[%clk 0:02:41]} 27. a5 {[%clk 0:02:51.7]} 27... e5 {[%clk 0:02:35.1]} 28.
a6 {[%clk 0:02:48.8]} 28... Ra8 {[%clk 0:02:31.2]} 29. Nc4 {[%clk 0:02:45.6]}
29... Bxc4 {[%clk 0:02:20]} 30. bxc4 {[%clk 0:02:44.1]} 30... Ra7 {[%clk
0:02:16.8]} 31. Rb1 {[%clk 0:02:40.3]} 31... Rfa8 {[%clk 0:02:11.9]} 32. Rb6
{[%clk 0:02:39.6]} 32... Kf8 {[%clk 0:01:58.4]} 33. Rxd6 {[%clk 0:02:37.8]}
33... Ke7 {[%clk 0:01:57.6]} 34. Rb6 {[%clk 0:02:36.6]} 34... Kd7 {[%clk
0:01:55.2]} 35. Rb7+ {[%clk 0:02:32.9]} 35... Rxb7 {[%clk 0:01:47]} 36. axb7
{[%clk 0:02:32.1]} 36... Rb8 {[%clk 0:01:45.8]} 37. Ra7 {[%clk 0:02:16.4]} 37...
Kc7 {[%clk 0:01:44.3]} 38. Kf1 {[%clk 0:02:12.8]} 38... Rxb7 {[%clk 0:01:42.7]}
39. Rxb7+ {[%clk 0:02:11.6]} 39... Kxb7 {[%clk 0:01:42.5]} 40. Ke2 {[%clk
0:02:10.2]} 40... Kb6 {[%clk 0:01:41.7]} 41. f4 {[%clk 0:02:08.7]} 41... f6
{[%clk 0:01:39.1]} 42. Kf3 {[%clk 0:02:06.8]} 42... Ka5 {[%clk 0:01:32.4]} 43.
Bf1 {[%clk 0:02:06.2]} 43... Kb4 {[%clk 0:01:31.3]} 44. Bd3 {[%clk 0:02:01.5]}
44... Kc3 {[%clk 0:01:29.5]} 45. Ke2 {[%clk 0:02:00.5]} 45... Bg1 {[%clk
0:01:27.1]} 46. h4 {[%clk 0:01:58.5]} 46... Kd4 {[%clk 0:01:22.3]} 47. fxe5
{[%clk 0:01:56]} 47... fxe5 {[%clk 0:01:17.6]} 48. g4 {[%clk 0:01:53.3]} 48...
Bh2 {[%clk 0:01:14.8]} 49. h5 {[%clk 0:01:45.4]} 49... gxh5 {[%clk 0:01:12]} 50.
gxh5 {[%clk 0:01:39.3]} 50... Bf4 {[%clk 0:01:11.6]} 51. Bc2 {[%clk 0:01:28.3]}
51... Kxc4 {[%clk 0:01:10.2]} 52. Kd1 {[%clk 0:01:25.8]} 52... Kd4 {[%clk
0:01:07.6]} 53. Ke2 {[%clk 0:01:25.2]} 53... c4 {[%clk 0:01:04.8]} 54. Kd1
{[%clk 0:01:22.1]} 54... Ke3 {[%clk 0:00:58.4]} 55. Ke1 {[%clk 0:01:14.3]} 55...
c3 {[%clk 0:00:53.2]} 56. Kd1 {[%clk 0:01:08.2]} 56... Kf3 {[%clk 0:00:48.3]}
57. Ke1 {[%clk 0:01:07]} 57... Bg3+ {[%clk 0:00:44.3]} 58. Kf1 {[%clk
0:01:03.4]} 58... h6 {[%clk 0:00:40.9]} 59. Bd1+ {[%clk 0:00:57]} 59... Ke3
{[%clk 0:00:39.4]} 60. Bc2 {[%clk 0:00:56.5]} 60... Kd2 {[%clk 0:00:37.1]} 61.
Bb1 {[%clk 0:00:56]} 61... c2 {[%clk 0:00:34.6]} 62. Bxc2 {[%clk 0:00:54.6]}
62... Kxc2 {[%clk 0:00:33.8]} 63. Ke2 {[%clk 0:00:53.7]} 63... Bf4 {[%clk
0:00:30.5]} 64. Kf3 {[%clk 0:00:53]} 64... Kd3 {[%clk 0:00:29.6]} 65. Kf2 {[%clk
0:00:48]} 65... Kxe4 {[%clk 0:00:28.6]} 66. Ke2 {[%clk 0:00:46.9]} 66... Kd4
{[%clk 0:00:25.5]} 67. Kf3 {[%clk 0:00:46.3]} 67... Kd3 {[%clk 0:00:24.7]} 68.
Kf2 {[%clk 0:00:45.6]} 68... e4 {[%clk 0:00:23.2]} 69. Kg2 {[%clk 0:00:43.7]}
69... e3 {[%clk 0:00:21.8]} 70. Kf3 {[%clk 0:00:43.6]} 70... Bg5 {[%clk
0:00:19.1]} 71. Kg2 {[%clk 0:00:41.6]} 71... e2 {[%clk 0:00:17.9]} 72. Kf2
{[%clk 0:00:40.1]} 72... Kd2 {[%clk 0:00:16.6]} 73. Kf3 {[%clk 0:00:39]} 73...
e1=Q {[%clk 0:00:14.2]} 74. Kg4 {[%clk 0:00:38.9]} 74... Qe4+ {[%clk 0:00:11.9]}
75. Kg3 {[%clk 0:00:37.8]} 75... Qf4+ {[%clk 0:00:10.6]} 76. Kh3 {[%clk
0:00:37.1]} 76... Ke2 {[%clk 0:00:06.5]} 77. Kg2 {[%clk 0:00:35.5]} 77... Qg4+
{[%clk 0:00:05.6]} 78. Kh2 {[%clk 0:00:33.7]} 78... Kf2 {[%clk 0:00:04.3]} 79.
Kh1 {[%clk 0:00:31.7]} 79... Qg2# {[%clk 0:00:03.3]} 0-1

[Event "Live Chess"]
[Site "Chess.com"]
[Date "2023.05.21"]
[Round "-"]
[White "smoggyrabbit"]
[Black "ViktorTheCoolBoy"]
[Result "0-1"]
[WhiteElo "1745"]
[BlackElo "2501"]
[TimeControl "300"]
[EndTime "20:18:23 PDT"]
[Termination "ViktorTheCoolBoy won on time"]

1. d4 {[%clk 0:04:58.3]} 1... e6 {[%clk 0:04:58.8]} 2. Nf3 {[%clk 0:04:57.1]}
2... f5 {[%clk 0:04:57.2]} 3. e3 {[%clk 0:04:54.7]} 3... Nf6 {[%clk 0:04:56.5]}
4. Be2 {[%clk 0:04:53.4]} 4... b6 {[%clk 0:04:54]} 5. O-O {[%clk 0:04:51.8]}
5... Bb7 {[%clk 0:04:53.2]} 6. b3 {[%clk 0:04:50.9]} 6... Be7 {[%clk 0:04:49.5]}
7. Bb2 {[%clk 0:04:49.9]} 7... O-O {[%clk 0:04:49]} 8. c4 {[%clk 0:04:46.9]}
8... Ne4 {[%clk 0:04:47.4]} 9. Nc3 {[%clk 0:04:37.9]} 9... d6 {[%clk 0:04:35.5]}
10. Qc2 {[%clk 0:04:33.4]} 10... Bf6 {[%clk 0:04:33.6]} 11. Bd3 {[%clk 0:04:20]}
11... Nxc3 {[%clk 0:04:31.9]} 12. Bxc3 {[%clk 0:04:18.5]} 12... Bxf3 {[%clk
0:04:30.5]} 13. gxf3 {[%clk 0:04:16.5]} 13... Qe8 {[%clk 0:04:29.3]} 14. Be2
{[%clk 0:04:02.2]} 14... f4 {[%clk 0:04:24.9]} 15. exf4 {[%clk 0:03:50.6]} 15...
Nc6 {[%clk 0:04:23.6]} 16. Qe4 {[%clk 0:03:44.9]} 16... Qh5 {[%clk 0:04:21.1]}
17. Qxe6+ {[%clk 0:03:41.4]} 17... Kh8 {[%clk 0:04:15.8]} 18. Qg4 {[%clk
0:03:23]} 18... Qf7 {[%clk 0:04:12.9]} 19. Rad1 {[%clk 0:03:03.1]} 19... Rae8
{[%clk 0:04:10.2]} 20. Bd3 {[%clk 0:02:59.6]} 20... Bxd4 {[%clk 0:04:03.8]} 21.
Be4 {[%clk 0:02:37.2]} 21... Bxc3 {[%clk 0:03:59.3]} 22. Bxc6 {[%clk 0:02:29]}
22... Re7 {[%clk 0:03:57.3]} 23. Rd3 {[%clk 0:02:13.3]} 23... Bf6 {[%clk
0:03:52.1]} 24. Re3 {[%clk 0:01:59.9]} 24... h5 {[%clk 0:03:45.6]} 25. Qf5
{[%clk 0:01:32.6]} 25... Bd4 {[%clk 0:03:41.8]} 26. Qxf7 {[%clk 0:01:24.9]}
26... Rexf7 {[%clk 0:03:41.7]} 27. Re4 {[%clk 0:01:18.6]} 27... Rxf4 {[%clk
0:03:40.1]} 28. Rxf4 {[%clk 0:01:01.4]} 28... Rxf4 {[%clk 0:03:38.2]} 29. Re1
{[%clk 0:01:00]} 29... Be5 {[%clk 0:03:36.8]} 30. Kg2 {[%clk 0:00:37.4]} 30...
Rh4 {[%clk 0:03:34.1]} 31. h3 {[%clk 0:00:35]} 31... Rd4 {[%clk 0:03:32.8]} 32.
Re4 {[%clk 0:00:31.9]} 32... Rd2 {[%clk 0:03:30.6]} 33. Be8 {[%clk 0:00:25]}
33... Bd4 {[%clk 0:03:22.1]} 34. Bxh5 {[%clk 0:00:20.7]} 34... Rxf2+ {[%clk
0:03:20.6]} 35. Kg3 {[%clk 0:00:19.3]} 35... Rd2 {[%clk 0:03:13.5]} 36. Bg6
{[%clk 0:00:18.3]} 36... Bf2+ {[%clk 0:03:06.3]} 37. Kg4 {[%clk 0:00:16.2]}
37... Rd4 {[%clk 0:03:05.1]} 38. Rxd4 {[%clk 0:00:13.8]} 38... Bxd4 {[%clk
0:03:04.9]} 39. Kf5 {[%clk 0:00:13.2]} 39... Kg8 {[%clk 0:03:03.8]} 40. Ke6
{[%clk 0:00:12.6]} 40... Kf8 {[%clk 0:03:03]} 41. Kd7 {[%clk 0:00:12]} 41... c5
{[%clk 0:03:02.1]} 42. Kxd6 {[%clk 0:00:11.4]} 42... Be3 {[%clk 0:03:00.1]} 43.
Kc6 {[%clk 0:00:10.6]} 43... Bd4 {[%clk 0:02:56.6]} 44. Kb7 {[%clk 0:00:09.9]}
44... Bc3 {[%clk 0:02:56]} 45. Kxa7 {[%clk 0:00:09.2]} 45... Ba5 {[%clk
0:02:55.3]} 46. Kb7 {[%clk 0:00:07.9]} 46... Ke7 {[%clk 0:02:54.5]} 47. Kc6
{[%clk 0:00:07.3]} 47... Kf6 {[%clk 0:02:53.9]} 48. Be4 {[%clk 0:00:06.1]} 48...
Ke5 {[%clk 0:02:53.3]} 49. Kd7 {[%clk 0:00:05]} 49... Kd4 {[%clk 0:02:52.1]} 50.
Ke6 {[%clk 0:00:04.4]} 50... Kc3 {[%clk 0:02:51.2]} 51. Kf7 {[%clk 0:00:03.9]}
51... Kb2 {[%clk 0:02:50.6]} 52. Kxg7 {[%clk 0:00:03.8]} 52... Kxa2 {[%clk
0:02:49.9]} 53. h4 {[%clk 0:00:03.7]} 53... Kxb3 {[%clk 0:02:48.9]} 54. h5
{[%clk 0:00:03.6]} 54... Bc3+ {[%clk 0:02:48]} 55. Kf7 {[%clk 0:00:03]} 55...
Kxc4 {[%clk 0:02:46]} 56. h6 {[%clk 0:00:02.6]} 56... b5 {[%clk 0:02:45.2]} 57.
h7 {[%clk 0:00:02.5]} 57... b4 {[%clk 0:02:44.6]} 58. h8=Q {[%clk 0:00:01.7]}
58... Bxh8 {[%clk 0:02:41.6]} 0-1